{"text_format":"1","workbook":"xlsx","n_sheets":9,"sheets":["ChangeLog","Start","Disclaimer","Instructions","Inputs-Outputs","Tabular_Outputs","Unbound Materials Database","Asphalt Materials Database","Dynamic Information"],"not_rendered":{"charts":1,"images":10,"macros":1,"external_links":1,"defined_names":41,"comments":0,"pivot_tables":0},"unopened":[],"bounds":{"document_bytes":16777216,"sheet_cells":100000,"rows_first":2000,"rows_last":500,"rows_between":2000,"halvings":0,"cell_chars":16384,"cell_head_chars":4096},"cells_cut":0,"cells_raw":0,"read":"whole","date_system":"1900"}

{"sheet":"ChangeLog","index":0,"n_rows":15,"n_cols":4,"rows_kept":15,"cut":false,"hidden":true,"merged":[]}
[]
[null,"FlexPAVE V2.1.2"]
[null,"Date\n(mm/dd/yyyy)","Change","Description"]
[null,44444,"Project Specific Resilient Modulus","Included Project Specific resilient modulus as part of the inputs in the structure table for unbound materials."]
[null,44457,"Buttons Resizing","Created Algorithm for reseting size and format of existing activeX buttons."]
[null,44525,"Hcd file Search Algorithm","Updated search mechanism of hcd files to become faster with an increased number of stations present in the 'MerraStationList.txt' file."]
[null,44540,"Portability File Generation","Created Algorithm for generating a portability file, including (when available) a summary of: Inputs, Material properties used (asphaltic and unbound), hcd files data and outputs."]
[null,44546,"Portability File Reading","Algorithm for reading the portability file and generating the related files inside the project's folder."]
[null,44565,"Configurations UserForm","Userform for selection of specific method of hcd files handling."]
[null,44565,"Save Project","Saving a project creates a subfolder with the files used in the specific project."]
[null,44565,"hcd file Handling","In progress: handle multiple methods of hcd file generation (selection, interpolation, etc)"]
[null,44585,"File Extension Selection","In progress: Modify file extension for selection of hcd files to include only .ptb and .hcd files."]
[null,44585,"Interpolation Info","In progress: Create userform for including lat/lon/elevation of interpolated hcd files. "]
[null,44592,"Instructions Sheet","In progress: Adding an in-program instructions sheet to guide users on settings and operation."]
[null,44742,"Initilization","Sets default opening sheet to Instructions and Clears inputs."]

{"sheet":"Start","index":1,"n_rows":11,"n_cols":1,"rows_kept":11,"cut":false,"hidden":false,"merged":[]}
[]
["BEFORE YOU START: FlexPAVE™ v2.2 requires the following configurations setup:"]
["      o Enable macro access. FlexPAVE™ v2.2 is a macro-based software and requires permission from Excel to run its algorithms. To do that, go to \"File > Options > Trust Center > Trust Center Settings > Macro Settings\" and: "]
["               1) under \"Macro Settings\", \"Disable all macros with notification\" configuration is suggested and further enabling FlexPAVE™ macros when requested;"]
["               2) under \"Developer Macro Settings\" check the \"Trust access to the VBA project object model\" checkbox, to give FlexPAVE™ permission to install required libraries (when needed and available). "]
[]
[]
[]
[]
[]
["Start Program Shortcut: (Alt + S)"]

{"sheet":"Disclaimer","index":2,"n_rows":19,"n_cols":1,"rows_kept":19,"cut":false,"hidden":true,"merged":[]}
[]
["FlexPAVE™ Disclaimer "]
["The FlexPAVE™ analysis product is disseminated under the sponsorship of the Federal Highway Administration (FHWA), U.S. Department of Transportation (USDOT) in the interest of information exchange. The United States Government assumes no liability for its content or use thereof. This analysis product does not constitute a standard, specification, or regulation."]
[" The contents of the product do not have the force and effect of law and are not meant to bind the public in any way, and the product is intended only to provide information to the public regarding existing requirements under the law or agency policies."]
["The United States Government does not endorse products or manufacturers. Trade and manufacturers' names may appear in this analysis product only because they are considered essential to the objective of the analysis product."]
["Limited Warranty and Limitations of Remedies"]
["This analysis product is provided \"as-is,\" without warranty of any kind, either expressed or implied (but not limited to the implied warranties of merchantability and fitness for a particular purpose). The entire risk arising out of the use or performance of software remains with you. The Federal Highway Administration (FHWA) does not warrant that the functions contained in the analysis product will meet the end-user's requirements or that the operation of the analysis will be uninterrupted and free of errors. Under no circumstances will FHWA be liable to the end-user for any damages or claimed lost profits, lost savings, or other incidental or consequential damages resulting from the use or inability to use the analysis product (even if these organizations have been advised of the possibility of such damages), or for any claim by any other party. "]
["Notice"]
["The use and testing of the FlexPAVE™ analysis product is being done strictly on a voluntary basis. In exchange for the provision of FlexPAVE™ analysis product, the user agrees that FHWA, U.S. Department of Transportation, any other agency of the Federal Government shall not be responsible for any errors, damage, or other liability that may result from any and all use of the analysis product, including installation, use, and evaluation of the analysis product. The user further agrees to hold FHWA, USDOT, and the Federal Government harmless from any resulting liability. The user agrees that this hold harmless provision shall flow to any person to whom or any entity to which the user provides the FlexPAVE™ analysis product. It is the user's full responsibility to inform any person to whom or any entity to which it provides the FlexPAVE™ analysis product of this hold harmless provision."]
["If any provisions of this notice are held to violate a law, or to be void or unenforceable in any jurisdiction, then such provisions are herewith waived or amended to the extent necessary for this license otherwise to be enforceable. However, this does not constitute any waiver of sovereign immunity by USDOT, FHWA, or the United States Government. "]
["The origin of this FlexPAVE™ analysis product must not be misrepresented; there shall be no claim that this analysis product is written by any individual, company, or organization other than the Federal Government. FHWA requests this disclaimer be maintained in all copies of this analysis product. This disclaimer may not be removed or altered from any distribution, recording, copy, or use of this FlexPAVE™ analysis product."]
["Contact:"]
["Matthew Corrigan, P.E."]
["Construction Research Engineer"]
["Federal Highway Administration"]
["Office of Infrastructure Research and Development"]
["6300 Georgetown Pike, HRDI-20"]
["McLean, VA 22101"]
["matthew.corrigan@dot.gov"]

{"sheet":"Instructions","index":3,"n_rows":12,"n_cols":1,"rows_kept":12,"cut":false,"hidden":true,"merged":[]}
[]
["BEFORE YOU START: FlexPAVE™ v2.2 requires the following configurations setup:"]
["      o Folder Structure: The link between the GUI and FlexPAVE's database folder is established automatically when the GUI is placed in the same directory as the master folder, which comprises a variety of libraries, files, and subfolders that are essential for FlexPAVE's operation. If the location of the master folder is not recognized or has been altered, a folder selection window will appear, prompting the user to specify the new location. The location of the master folder can also be altered using the 'Settings' button in the 'Inputs-Outputs' tab."]
["      o IMPORTANT: Moving, modifying or renaming files and/or folders from FlexPAVE's source folder can compromise FlexPAVE™ v2.2's reliability. \nDO NOT do so without instruction."]
["------------------------------------------------------------------------------------------------------------------------------------------------------------------------------------------------------------------------------------"]
["FlexPAVE GUI General Operation: (For in-depth content, refer to the user-guidance document)"]
["      o To set up the characteristics of a project for simulation, use the input cells in the 'Inputs-Outputs' tab. The inputs are organized into four distinct categories: 'Project Details', 'Climate Details', 'Pavement Structure', and 'Traffic Data'. Fill out the relevant information in each category before running the simulation."]
["      o Certain cells in the 'Inputs-Outputs' tab are responsible for activating code-controlled events. These cells include 'Project Name', 'Climate Data Source', 'Number of Layers', 'Layer Type' and 'Displayed Distress'. When any of these cells are modified, it can cause changes in the interface, display userforms, and/or update GUI elements. For further information on how these cells function, please refer to the user-guidance document."]
["      o The 'Inputs-Outputs' tab includes the following auxiliary buttons and functionalities:\n          - 'Clear Inputs': This button clears the interface, deletes any inputs, and resets selections to their default values.\n          - 'Load Project': This button opens a userform that allows you to load a previously saved project.\n          - 'Save Project': This button saves the current project to the local database of projects.\n          - 'Run Analysis': This button starts the project simulation.\n          - 'Settings': This button opens a userform that allows you to change the program's settings.\n          - 'Asphalt Material Details': This button opens a userform that allows you to view and edit the properties of the asphalt materials.\n          - 'Unbound Material Details': This button opens a userform that allows you to view and edit the properties of the unbound materials."]
["      o In the structure table, the materials used for each layer are determined by the 'Layer Type' selection. When a layer type is selected, a list of corresponding materials from the local database will be displayed as options for the 'Material' selection. "]
["      o The 'Resilient Modulus' column of the structure table will present the stored value of the resilient modulus for a selected unbound material. Overwritting the displayed resilient modulus in the structure table will not modify the material in the database, but the simulation will be performed with the value provided in the  structure table."]
["      o The 'Tabular_Outputs' tab displays a table with numerical values of the simulation for the current project. These values are also shown in the 'Inputs-Outputs' tab's distress plot."]

{"sheet":"Inputs-Outputs","index":4,"n_rows":35,"n_cols":7,"rows_kept":35,"cut":false,"hidden":true,"merged":[]}
["FlexPAVE™ 2.2"]
["Project Details (All Inputs Required)",null,null,null,null,"Performance Prediction"]
["Project Name",null,null,null,null,"Displayed Distress","(Select One)"]
["Latitude [degrees]"]
["Longitude [degrees]"]
["Elevation [ft]"]
["Water Table Depth [ft]"]
["Traffic Opening Month"]
["Design Life [Years]"]
["Climate Details"]
["Climate Data Source"]
["Pavement Structure"]
["Number of Layers",4]
["Units System","US Customary"]
["Table 1. Pavement Structure (All Inputs Required)"]
["Layer Type","Thickness [in.]","Material\n(* Materials from ptb File)","Resilient Modulus [ksi]"]
[]
[]
[]
[null,"Infinite"]
[]
["Traffic Data (All Inputs Required)"]
["Axle Load Repetitions per Day"]
["Axle Load [kips]"]
["Tire Pressure [psi]"]
["Velocity [mph]"]
[]
["Shortcuts List"]
["Clear Inputs: ALT + C"]
["Load Project: ALT + L"]
["Save Project: ALT + S"]
["Run Analysis: ALT + R","            "]
["Settings: ALT + E"]
["Asphalt Material Details: ALT + A"]
["Unbound Material Details: ALT + U"]

{"sheet":"Tabular_Outputs","index":5,"n_rows":2,"n_cols":11,"rows_kept":2,"cut":false,"hidden":true,"merged":[]}
[null,"Table 2. Simulation Results"]
[null,"Years","Percent Damage (Total)","Percent Damage (Top)","Percent Damage (Bottom)","Rutting (Total) [in.]","Rutting Layer 1 [in.]","Rutting Layer 2 [in.]","Rutting Layer 3 [in.]","Rutting Layer 4 [in.]","Thermal Cracking [in.]"]

{"sheet":"Unbound Materials Database","index":6,"n_rows":45,"n_cols":22,"rows_kept":45,"cut":false,"hidden":true,"merged":[]}
[null,"Soil Classification [SI Units]"]
[null,"Material Type","Soil Classification","UnitWeight_TextBox","TextBox_ThermalExpansionCoef","Poisson_TextBox","Plasticity_TextBox","ThermalConduct_TextBox","ResilientModulus_TextBox","TextBox_RuttingBeta1","HeatCapacity_TextBox","Passing200_TextBox","Passing4_TextBox","D60_TextBox","SpecificGravity_TextBox","SatPerm_TextBox","OptimumWater_TextBox","FreudlundA_TextBox","FreudlundB_TextBox","FreudlundC_TextBox","FreudlundHr_TextBox","SurfaceShortwaveAbs_TextBox"]
[null,"Custom","New Material"]
[null,"Subgrade","A-1-a (AASHTO Soil Classification)",2038.2,1.9999999999999999E-6,0.35,1,0.4,203.4,0.96499999999999997,711.8,8.6999999999999993,44.7,10.8214796290146,2.7,1.5404955660426697E-2,7.3521038607070599,7.2554968299603404,1.33282181654764,0.82422075194072097,117.4,0.85]
[null,"Subgrade","A-1-b (AASHTO Soil Classification)",1981.7,1.9999999999999999E-6,0.35,1,0.4,182.71,0.96499999999999997,711.8,13.4,74.2,1.5816656492908301,2.7,7.019340189398952E-4,9.1252317619793306,5.8205863403679201,0.46207138278854498,3.8496815330305298,126.8,0.85]
[null,"Subgrade","A-2-4 (AASHTO Soil Classification)",1987,1.9999999999999999E-6,0.35,2,0.4,168.92,0.96499999999999997,711.8,22.4,87.2,0.34757480161870902,2.7,1.7842664105893733E-4,8.9586288837945691,9.5043214343786708,0.64386457247550299,3.06363831490942,189.6,0.85]
[null,"Subgrade","A-2-5 (AASHTO Soil Classification)",1952,1.9999999999999999E-6,0.35,6,0.4,148.24,0.96499999999999997,711.8,30,81,0.40574395555192699,2.7,1.414228975902065E-7,10.0559676435432,48.161515093257599,1.09055279901014,0.88686688801541802,460,0.85]
[null,"Subgrade","A-2-6 (AASHTO Soil Classification)",1953,1.9999999999999999E-6,0.35,15,0.4,144.79,0.96499999999999997,711.8,24.8,67.2,2.1376037207563998,2.7,2.3319329243325461E-6,10.024773150835999,75.574116648139807,0.93513896110502903,0.43152392185139898,500,0.85]
[null,"Subgrade","A-2-7 (AASHTO Soil Classification)",1935.2,1.9999999999999999E-6,0.35,29,0.4,141.34,0.96499999999999997,711.8,27.4,55.4,5.7299229876369804,2.7,2.0824358882173727E-6,10.583256466543601,100.49407536548,0.73433928335450505,0.26804717119767602,500,0.85]
[null,"Subgrade","A-3 (AASHTO Soil Classification)",1922.2,1.9999999999999999E-6,0.35,0,0.4,113.76,0.63500000000000001,711.8,5.2,95.3,0.32548648352334902,2.7,1.1513770746959182E-3,7.3481556254182303,4.7571687785850196,2.8814443446892701,0.86937358873896398,100,0.85]
[null,"Subgrade","A-4 (AASHTO Soil Classification)",1896.4,1.9999999999999999E-6,0.35,5,0.4,113.76,0.67500000000000004,711.8,60.6,93,7.0241747939714397E-2,2.7,2.5374594793331481E-6,11.8024231218682,68.837653611981196,0.99828512687554505,0.47571561175511701,500,0.85]
[null,"Subgrade","A-5 (AASHTO Soil Classification)",1908.8,1.9999999999999999E-6,0.35,5,0.4,106.87,0.67500000000000004,711.8,54.3,86.9,0.12337239719116901,2.7,2.8212248872402202E-7,11.4106870851391,65.233333789425998,1.0338044227937599,0.49936021324067698,500,0.85]
[null,"Subgrade","A-6 (AASHTO Soil Classification)",1727.6,1.9999999999999999E-6,0.35,16,0.4,99.97,0.67500000000000004,711.8,63.2,93.5,5.3639971841439697E-2,2.7,5.943633823280144E-6,17.0968053890224,108.409089366177,0.68006977580491201,0.21612410082306999,500,0.85]
[null,"Subgrade","A-7-5 (AASHTO Soil Classification)",1634.2,1.9999999999999999E-6,0.35,24,0.4,89.63,0.67500000000000004,711.8,70.5,94,2.7980833659456899E-2,2.7,1.3049858019760058E-6,20.029065290421599,125.311677789437,0.577229560549397,0.105241885310042,500,0.85]
[null,"Subgrade","A-7-6 (AASHTO Soil Classification)",1564.2,1.9999999999999999E-6,0.35,30,0.4,79.290000000000006,0.67500000000000004,711.8,79.099999999999994,94.9,1.51645765691603E-2,2.7,2.7268790977733567E-6,22.224480929209399,136.41791021314901,0.51827677573775499,3.2384188825571501E-2,500,0.85]
[null,"Aggregate_Base","A-1-a (AASHTO Soil Classification)",2038.2,1.9999999999999999E-6,0.35,1,0.4,275.79000000000002,0.96499999999999997,711.8,8.6999999999999993,44.7,10.8214796290146,2.7,1.5404955660426697E-2,7.3521038607070599,7.2554968299603404,1.33282181654764,0.82422075194072097,117.4,0.85]
[null,"Aggregate_Base","A-1-b (AASHTO Soil Classification)",1981.7,1.9999999999999999E-6,0.35,1,0.4,262,0.96499999999999997,711.8,13.4,74.2,1.5816656492908301,2.7,7.019340189398952E-4,9.1252317619793306,5.8205863403679201,0.46207138278854498,3.8496815330305298,126.8,0.85]
[null,"Aggregate_Base","A-2-4 (AASHTO Soil Classification)",1987,1.9999999999999999E-6,0.35,2,0.4,220.63,0.96499999999999997,711.8,22.4,87.2,0.34757480161870902,2.7,1.7842664105893733E-4,8.9586288837945691,9.5043214343786708,0.64386457247550299,3.06363831490942,189.6,0.85]
[null,"Aggregate_Base","A-2-5 (AASHTO Soil Classification)",1952,1.9999999999999999E-6,0.35,6,0.4,193.05,0.96499999999999997,711.8,30,81,0.40574395555192699,2.7,1.414228975902065E-7,10.0559676435432,48.161515093257599,1.09055279901014,0.88686688801541802,460,0.85]
[null,"Aggregate_Base","A-2-6 (AASHTO Soil Classification)",1953,1.9999999999999999E-6,0.35,15,0.4,179.26,0.96499999999999997,711.8,24.8,67.2,2.1376037207563998,2.7,2.3319329243325461E-6,10.024773150835999,75.574116648139807,0.93513896110502903,0.43152392185139898,500,0.85]
[null,"Aggregate_Base","A-2-7 (AASHTO Soil Classification)",1935.2,1.9999999999999999E-6,0.35,29,0.4,165.47,0.96499999999999997,711.8,27.4,55.4,5.7299229876369804,2.7,2.0824358882173727E-6,10.583256466543601,100.49407536548,0.73433928335450505,0.26804717119767602,500,0.85]
[null,"Aggregate_Base","A-3 (AASHTO Soil Classification)",1922.2,1.9999999999999999E-6,0.35,0,0.4,199.95,0.96499999999999997,711.8,5.2,95.3,0.32548648352334902,2.7,1.1513770746959182E-3,7.3481556254182303,4.7571687785850196,2.8814443446892701,0.86937358873896398,100,0.85]
[null,"Aggregate_Base","Cold recycled asphalt - RAP (includes millings)",2038.2,1.9999999999999999E-6,0.35,1,0.4,206.84,0.96499999999999997,711.8,8.6999999999999993,44.7,10.8214796290146,2.7,1.5404955660426697E-2,7.3521038607070599,7.2554968299603404,1.33282181654764,0.82422075194072097,117.4,0.85]
[null,"Aggregate_Base","Cold recycled asphalt - RAP pulverized in place",2038.2,1.9999999999999999E-6,0.35,1,0.4,137.9,0.96499999999999997,711.8,8.6999999999999993,44.7,10.8214796290146,2.7,1.5404955660426697E-2,7.3521038607070599,7.2554968299603404,1.33282181654764,0.82422075194072097,117.4,0.85]
[null,"Aggregate_Base","Crushed gravel",2038.2,1.9999999999999999E-6,0.35,1,0.4,172.37,0.96499999999999997,711.8,8.6999999999999993,44.7,10.8214796290146,2.7,1.5404955660426697E-2,7.3521038607070599,7.2554968299603404,1.33282181654764,0.82422075194072097,117.4,0.85]
[null,"Aggregate_Base","Crushed stone",2038.2,1.9999999999999999E-6,0.35,1,0.4,206.84,0.96499999999999997,711.8,8.6999999999999993,44.7,10.8214796290146,2.7,1.5404955660426697E-2,7.3521038607070599,7.2554968299603404,1.33282181654764,0.82422075194072097,117.4,0.85]
[null,"Aggregate_Base","Permeable aggregate",2038.2,1.9999999999999999E-6,0.35,1,0.4,103.42,0.96499999999999997,711.8,8.6999999999999993,44.7,10.8214796290146,2.7,1.5404955660426697E-2,7.3521038607070599,7.2554968299603404,1.33282181654764,0.82422075194072097,117.4,0.85]
[null,"Aggregate_Base","River-run gravel",2038.2,1.9999999999999999E-6,0.35,1,0.4,103.42,0.96499999999999997,711.8,8.6999999999999993,44.7,10.8214796290146,2.7,1.5404955660426697E-2,7.3521038607070599,7.2554968299603404,1.33282181654764,0.82422075194072097,117.4,0.85]
[]
[null,"Default Materials"]
[null,"Material Name","Soil Classification","UnitWeight_TextBox","TextBox_ThermalExpansionCoef","Poisson_TextBox","Plasticity_TextBox","ThermalConduct_TextBox","ResilientModulus_TextBox","TextBox_RuttingBeta1","HeatCapacity_TextBox","Passing200_TextBox","Passing4_TextBox","D60_TextBox","SpecificGravity_TextBox","SatPerm_TextBox","OptimumWater_TextBox","FreudlundA_TextBox","FreudlundB_TextBox","FreudlundC_TextBox","FreudlundHr_TextBox","SurfaceShortwaveAbs_TextBox"]
[null,"Default_Base_A-1-a","A-1-a (AASHTO Soil Classification)",2038.2,1.9999999999999999E-6,0.35,1,0.4,275.79000000000002,1.67,711.8,8.6999999999999993,44.7,10.8214796290146,2.7,1.5404955660426697E-2,7.3521038607070599,7.2554968299603404,1.33282181654764,0.82422075194072097,117.4,0.85]
[null,"Default_Base_A-6","A-6 (AASHTO Soil Classification)",1727.6,1.9999999999999999E-6,0.35,16,0.4,117.21,1.67,711.8,63.2,93.5,5.3639971841439697E-2,2.7,5.943633823280144E-6,17.0968053890224,108.409089366177,0.68006977580491201,0.21612410082306999,500,0.85]
[null,"Default_Subgrade_A-7-5","A-7-5 (AASHTO Soil Classification)",1634.2,1.9999999999999999E-6,0.35,24,0.4,82.74,1.67,711.8,70.5,94,2.7980833659456899E-2,2.7,1.3049858019760058E-6,20.029065290421599,125.311677789437,0.577229560549397,0.105241885310042,500,0.85]
[null,"Default_Subgrade_A-3","A-3 (AASHTO Soil Classification)",1922.2,1.9999999999999999E-6,0.35,0,0.4,55.16,1.67,711.8,5.2,95.3,0.32548648352334902,2.7,1.1513770746959182E-3,7.3481556254182303,4.7571687785850196,2.8814443446892701,0.86937358873896398,100,0.85]
[]
[null,"Properties Units and Format"]
[null,"-","UnitWeight_TextBox","Poisson_TextBox","Plasticity_TextBox","TextBox_ThermalExpansionCoef","ThermalConduct_TextBox","ResilientModulus_TextBox","TextBox_RuttingBeta1","HeatCapacity_TextBox","Passing200_TextBox","Passing4_TextBox","D60_TextBox","SpecificGravity_TextBox","SatPerm_TextBox","OptimumWater_TextBox","FreudlundA_TextBox","FreudlundB_TextBox","FreudlundC_TextBox","FreudlundHr_TextBox","SurfaceShortwaveAbs_TextBox"]
[null,"Related LabelBox name","UnitWeight_Label","Poisson_Label","Plasticity_Label","Label_ThermalExpansion","ThermalConductivity_Label","ResilientMod_Label","Label6_RuttingBeta1","HeatCapacity_Label","Passing200_Label","Passing4_Label","D60_Label","SpecificGravity_Label","SaturatedPerm_Label","OptimumWater_Label","FreudlundA_Label","FreudlundB_Label","FreudlundC_Label","FreudlundHr_Label","-"]
[null,"SI Unit","kg/m³"," "," ","1/°C","W/(m.°C)","MPa"," ","J/(kg.°C)","%","%","mm"," ","m/s","%"," "," "," "," "," "]
[null,"SI Number Format","0.0","0.00","0.00","0.000E+0","0.00","0.00","0.000","0.00","0.00","0.00","0.000E+0","0.00","0.000E+0","0.00","0.000E+0","0.000E+0","0.000E+0","0.00","0.00"]
[null,"USA Unit","pcf"," "," ","1/°F","BTU/(ft.hr.°F)","ksi"," ","BTU/(lb.°F)","%","%","mm"," ","ft/s","%"," "," "," "," "," "]
[null,"USA Number Format","0.00","0.00","0.00","0.000E+0","0.00","0.00","0.000","0.000E+0","0.00","0.00","0.000E+0","0.00","0.000E+0","0.00","0.000E+0","0.000E+0","0.000E+0","0.00","0.00"]
[null,"USA = SI * x;        x =",6.2427999999999997E-2,1,1,{"$f":"5/9","v":0.55555555555555558},0.57799999999999996,0.14503769999999999,1,2.3884589999999999E-4,1,1,1,1,3.28084,1,1,1,1,1,1]
[null,"SI = USA * y;       y =",{"$f":"1/C44","v":16.018453258153393},1,1,{"$f":"1/F44","v":1.7999999999999998},{"$f":"1/G44","v":1.7301038062283738},{"$f":"1/H44","v":6.8947590867753696},1,{"$f":"1/J44","v":4186.7999408823853},1,1,1,1,{"$f":"1/O44","v":0.30479999024640031},1,1,1,1,1,1]

{"sheet":"Asphalt Materials Database","index":7,"n_rows":63,"n_cols":48,"rows_kept":63,"cut":false,"hidden":true,"merged":[]}
[null,"Default Asphalt Materials"]
[null,"Mixture ID","TextBox1_Density","TextBox2_ThermalConductivity","TextBox3_HeatCapacity","CTCg_TextBox","CTCL_TextBox","Tg_TextBox","R_TextBox","SfA0_TextBox","SfA1_TextBox","SfA2_TextBox","delta_TextBox","kappa_TextBox","h_TextBox","beta_TextBox","logTe_TextBox","E00_TextBox","E0_TextBox","alpha_TextBox","C11_TextBox","C12_TextBox","DR_TextBox","dmax_TextBox","Epsilon0_TextBox","N1_TextBox","BetaRutting_TextBox","P1_TextBox","P2_TextBox","d1_TextBox","d2_TextBox","TrefRutting_TextBox","M_TextBox","LogG_TextBox","AcDev_TextBox","c_TextBox","C0_1","C0_2","C0_3","C0_4","a_1","a_2","a_3","a_4","b_1","b_2","b_3","b_4"]
[null,"Default Asphalt",2500,1.1591695501730106,962.96398640294865,8.0299999999999994E-6,2.27E-5,-29.03,2.6829999999999998,1.0690000000000001E-3,-0.17080000000000001,3.1280000000000001,1.605,9.851E-2,0.40670000000000001,1000000000000,-3.1709999999999998,34.81,40000,3.7160000000000002,2.6380000000000002E-3,0.46410000000000001,0.55520000000000003,0.8,2.7980000000000001E-3,0.65480000000000005,0.71209999999999996,0.7581,0.30170000000000002,0.105,-0.40839999999999999,51.15,0.70350000000000001,1.3120000000000001,0,1.71,0.99,0.9,0.8,0.7,4586.1000000000004,3157.8,1777.1,971.4,-0.93440000000000001,-0.93559999999999999,-0.93779999999999997,-0.93899999999999995]
[]
[null,"Properties Units and format"]
[null,"-","TextBox1_Density","TextBox2_ThermalConductivity","TextBox3_HeatCapacity","CTCg_TextBox","CTCL_TextBox","Tg_TextBox","R_TextBox","SfA0_TextBox","SfA1_TextBox","SfA2_TextBox","delta_TextBox","kappa_TextBox","h_TextBox","beta_TextBox","logTe_TextBox","E00_TextBox","E0_TextBox","alpha_TextBox","C11_TextBox","C12_TextBox","DR_TextBox","dmax_TextBox","Epsilon0_TextBox","N1_TextBox","BetaRutting_TextBox","P1_TextBox","P2_TextBox","d1_TextBox","d2_TextBox","TrefRutting_TextBox","M_TextBox","LogG_TextBox","AcDev_TextBox","c_TextBox","C0_1","C0_2","C0_3","C0_4","a_1","a_2","a_3","a_4","b_1","b_2","b_3","b_4"]
[null,"Related LabelBox name","Label1_Density","Label2_TConductivity","Label3_HeatCapacity","CTCg_Label","CTCL_Label","Tg_Label","R_Label","SfA0_Label","SfA1_Label","SfA2_Label","delta_Label","kappa_Label","h_Label","Beta_Label","LogTe_Label","E00_Label","E0_Label","alpha_Label","C11_Label","C12_Label","DR_Label","DMax_Label","Label_Epsilon0","Label_N1","Label_BetaRut","Label_P1","Label_P2","Label_d1","Label_d2","Label_TRefRut","M_Label","LogG_Label","AcDev_Label","c_Label","-","-","-","-","-","-","-","-","-","-","-","-"]
[null,"SI Unit","kg/m³","W/(m.°C)","J/(kg.°C)","1/°C","1/°C","°C","°C"," "," "," "," "," "," "," "," ","MPa","MPa"," "," "," "," "," "," "," "," "," "," "," "," ","°C"," "," "," "," "," "," "," "," "," "," "," "," "," "," "," "," "]
[null,"SI Number Format","0","0.00E+0","0.00E+0","0.00E+0","0.00E+0","0.00","0.00","0.00E+0","0.00E+0","0.00E+0","0.0000","0.0000","0.0000","0.00E+0","0.00E+0","0.00","0.00","0.00","0.00E+0","0.00E+0","0.00","0.00","0.00E+0","0.00","0.00","0.00","0.00","0.00","0.00","0.00","0.000","0.000","0.0","0.000","0.00","0.00","0.00","0.00","0.0","0.0","0.0","0.0","0.0000","0.0000","0.0000","0.0000"]
[null,"USA Unit","pcf","BTU/(ft.hr.°F)","BTU/(lb.°F)","1/°F","1/°F","°F","°F"," "," "," "," "," "," "," "," ","ksi","ksi"," "," "," "," "," "," "," "," "," "," "," "," ","°F"," "," "," "," "," "," "," "," "," "," "," "," "," "," "," "," "]
[null,"USA Number Format","0.00","0.00E+0","0.00E+0","0.00E+0","0.00E+0","0.0","0.00","0.00E+0","0.00E+0","0.00E+0","0.0000","0.0000","0.0000","0.00E+0","0.00E+0","0.00E+0","0.00E+0","0.00","0.00E+0","0.00E+0","0.00","0.00","0.00E+0","0.00","0.00","0.00","0.00","0.00","0.00","0.0","0.000","0.000","0.0","0.000","0.00","0.00","0.00","0.00","0.0","0.0","0.0","0.0","0.0000","0.0000","0.0000","0.0000"]
[null,"USA = SI * x;        x =",{"$f":"0.062428","v":6.2427999999999997E-2},0.57799999999999996,2.3884589999999999E-4,{"$f":"5/9","v":0.55555555555555558},{"$f":"5/9","v":0.55555555555555558},0,1.8,1,1,1,1,1,1,1,1,0.14503769999999999,0.14503769999999999,1,1,1,1,1,1,1,1,1,1,1,1,0,1,1,1,1,1,1,1,1,1,1,1,1,1,1,1,1]
[null,"unity",1,1,1,1,1,1,1,1,1,1,1,1,1,1,1,1,1,1,1,1,1,1,1,1,1,1,1,1,1,1,1,1,1,1,1,1,1,1,1,1,1,1,1,1,1,1]
[]
[]
[null,"Material File"]
[null,"Information","Control","Value","Obs","unit","format"]
[null,"Density","TextBox1_Density",null,null,"kg/m³","0.0"]
[null,"Thermal Conductivity","TextBox2_ThermalConductivity",null,null,"W/(m.°C)","0.00E+0"]
[null,"Heat Capacity","TextBox3_HeatCapacity",null,null,"J/(kg.°C)","0.00E+0"]
[null,"CTC_g (CTC)","CTCg_TextBox",null,null,"1/°C","0.00E+0"]
[null,"CTC_L (CTC)","CTCL_TextBox",null,null,"1/°C","0.00E+0"]
[null,"Tg (CTC)","Tg_TextBox",null,null,"°C","0.00"]
[null,"R (CTC)","R_TextBox",null,null,"°C","0.00"]
[null,"Shift-factor a0 (Dynamic Modulus)","SfA0_TextBox",null,null," ","0.00E+0"]
[null,"Shift-factor a1 (Dynamic Modulus)","SfA1_TextBox",null,null," ","0.00E+0"]
[null,"Shift-factor a2 (Dynamic Modulus)","SfA2_TextBox",null,null," ","0.00E+0"]
[null,"delta (Dynamic Modulus)","delta_TextBox",null,null," ","0.0000"]
[null,"kappa (Dynamic Modulus)","kappa_TextBox",null,null," ","0.0000"]
[null,"h (Dynamic Modulus)","h_TextBox",null,null," ","0.0000"]
[null,"beta (Dynamic Modulus)","beta_TextBox",null,null," ","0.00E+0"]
[null,"lot(tau_E) (Dynamic Modulus)","logTe_TextBox",null,null," ","0.00E+0"]
[null,"E_00 (Dynamic Modulus)","E00_TextBox",null,"MPa to Pa Conversion","Pa","0.000E+0"]
[null,"E_0 (Dynamic Modulus)","E0_TextBox",null,"MPa to Pa Conversion","Pa","0.000E+0"]
[null,"Damage evolution rate factor, alpha (Fatigue)","alpha_TextBox",null,null," ","0.00"]
[null,"C11 (Fatigue)","C11_TextBox",null,null," ","0.00E+0"]
[null,"C12 (Fatigue)","C12_TextBox",null,null," ","0.00E+0"]
[null,"DR (Fatigue)","DR_TextBox",null,null," ","0.00"]
[null,"d_max (Fatigue)","dmax_TextBox",null,null," ","0.00"]
[null,"Epsilon_0 (Rutting)","Epsilon0_TextBox",null,null," ","0.00E+0"]
[null,"N1 (Rutting)","N1_TextBox",null,null," ","0.00"]
[null,"Beta (Rutting)","BetaRutting_TextBox",null,null," ","0.00"]
[null,"P1 (Rutting)","P1_TextBox",null,null," ","0.00"]
[null,"P2 (Rutting)","P2_TextBox",null,null," ","0.00"]
[null,"d1 (Rutting)","d1_TextBox",null,null," ","0.00"]
[null,"d2 (Rutting)","d2_TextBox",null,null," ","0.00"]
[null,"Reference Temperature (Rutting)","TrefRutting_TextBox",null,null,"°C","0.00"]
[null,"M (Aging)","M_TextBox",null,null," ","0.000"]
[null,"Log(G*), STA (Aging)","LogG_TextBox",null,null," ","0.000"]
[null,"%ACDev (Aging)","AcDev_TextBox",null,null," ","0.0"]
[null,"c (Aging)","c_TextBox",null,null," ","0.000"]
[null,"C0_1 (DPSE)","C0_1",null,null," ","0.00"]
[null,"C0_2 (DPSE)","C0_2",null,null," ","0.00"]
[null,"C0_3 (DPSE)","C0_3",null,null," ","0.00"]
[null,"C0_4 (DPSE)","C0_4",null,null," ","0.00"]
[null,"a_1 (DPSE)","a_1",null,null," ","0.0"]
[null,"a_2 (DPSE)","a_2",null,null," ","0.0"]
[null,"a_3 (DPSE)","a_3",null,null," ","0.0"]
[null,"a_4 (DPSE)","a_4",null,null," ","0.0"]
[null,"b_1 (DPSE)","b_1",null,null," ","0.0000"]
[null,"b_2 (DPSE)","b_2",null,null," ","0.0000"]
[null,"b_3 (DPSE)","b_3",null,null," ","0.0000"]
[null,"b_4 (DPSE)","b_4",null,null," ","0.0000"]

{"sheet":"Dynamic Information","index":8,"n_rows":126,"n_cols":52,"rows_kept":126,"cut":false,"hidden":true,"merged":[]}
[null,null,"Overarching Folder","D:\\Dropbox\\FlexPAVE Versions\\FlexPAVE 2.2_042724\\FlexPAVE Source",null,"DPSE Table"]
[null,null,"Asphalt Folder Location","D:\\Dropbox\\FlexPAVE Versions\\FlexPAVE 2.2_042724\\FlexPAVE Source\\MaterialData\\Asphalt",null,"C0","a","b"]
[null,null,"Aggregate Folder Location","D:\\Dropbox\\FlexPAVE Versions\\FlexPAVE 2.2_042724\\FlexPAVE Source\\MaterialData\\Aggregate",null,0.99]
[null,null,"Projects Folder Location","D:\\Dropbox\\FlexPAVE Versions\\FlexPAVE 2.2_042724\\FlexPAVE Source\\ProjectFiles",null,0.9]
[null,null,"FlexPAVE.exe Location","D:\\Dropbox\\FlexPAVE Versions\\FlexPAVE 2.2_042724\\FlexPAVE Source\\Applications",null,0.8]
[null,null,"Individual hcd (ptb) File Location",null,null,0.7]
[]
[null,null,null,null,null,"Asphalt Properties"]
[null,null,null,null,null,"Mixture ID","TextBox1_Density","TextBox2_ThermalConductivity","TextBox3_HeatCapacity","CTCg_TextBox","CTCL_TextBox","Tg_TextBox","R_TextBox","SfA0_TextBox","SfA1_TextBox","SfA2_TextBox","delta_TextBox","kappa_TextBox","h_TextBox","beta_TextBox","logTe_TextBox","E00_TextBox","E0_TextBox","alpha_TextBox","C11_TextBox","C12_TextBox","DR_TextBox","dmax_TextBox","Epsilon0_TextBox","N1_TextBox","BetaRutting_TextBox","P1_TextBox","P2_TextBox","d1_TextBox","d2_TextBox","TrefRutting_TextBox","M_TextBox","LogG_TextBox","AcDev_TextBox","c_TextBox","C0_1","C0_2","C0_3","C0_4","a_1","a_2","a_3","a_4","b_1","b_2","b_3","b_4"]
[null,null,"Default Seasonal Flag",1]
[null,null,"Default Aging Flag",1]
[null,null,"Default Traffic + Thermal Flag",1,null,"Unbound Properties"]
[null,null,null,null,null,"Material Name","Soil Classification","UnitWeight_TextBox","TextBox_ThermalExpansionCoef","Poisson_TextBox","Plasticity_TextBox","ThermalConduct_TextBox","ResilientModulus_TextBox","TextBox_RuttingBeta1","HeatCapacity_TextBox","Passing200_TextBox","Passing4_TextBox","D60_TextBox","SpecificGravity_TextBox","SatPerm_TextBox","OptimumWater_TextBox","FreudlundA_TextBox","FreudlundB_TextBox","FreudlundC_TextBox","FreudlundHr_TextBox","SurfaceShortwaveAbs_TextBox"]
[null,null,null,null,null,null,null,1987,1.9999999999999999E-6,0.35,2,0.4,220.6,0.96499999999999997,711.8,22.4,87.2,0.34760000000000002,2.7002823329755041,1.784E-4,8.9589875148465019,9.5039999999999996,0.64390000000000003,3.0640000000000001,189.6]
[]
[]
[]
[]
[null,null,null,null,null,"Current Project Properties",null,null,null,null,null,"Asphalt Materials",null,"Unbound Materials",null,"Layers",null,"Valid US coordinates"]
[null,null,null,null,null,"Information","Value","Observation","Unit","Format",null,"Base_Mix_PoorFatigue",null,"Aggregate_Base_A-1-a",null,"Asphalt",null,"Latitude","Max Longitude","Min Longitude"]
[null,null,null,null,null,"Unit System",1,"Default Information",null,null,null,"Base_Mix_Regular",null,"Aggregate_Base_A-1-b",null,"Unbound Base/Subbase",null,18,-65.625,-66.875]
[null,null,null,null,null,"Approximation Flag",0,"Default Information",null,null,null,"Intermediate_Mix_PoorFatigue",null,"Aggregate_Base_A-2-4",null,"Subgrade",null,18.5,-65.625,-66.875]
[null,null,null,null,null,"Isothermal Flag",0,"Default Information",null,null,null,"Intermediate_Mix_Regular",null,"Aggregate_Base_A-2-5",null,null,null,19,-155,-160]
[null,null,null,null,null,"Seasonal Flag",1,"Default Information",null,null,null,"Surface_Mix_GoodRutting",null,"Aggregate_Base_A-2-6",null,null,null,19.5,-155,-160]
[null,null,null,null,null,"Aging Flag",1,"Default Information",null,null,null,"Surface_Mix_PoorFatigue",null,"Aggregate_Base_A-2-7",null,null,null,20,-155,-160]
[null,null,null,null,null,"Traffic + Thermal Flag",1,"Default Information",null,null,null,"Surface_Mix_PoorRutting",null,"Aggregate_Base_A-3",null,null,null,20.5,-155,-160]
[null,null,null,null,null,"Interpolate MERRA Flag",0,"Default Information",null,null,null,"Surface_Mix_Regular",null,"Aggregate_Base_ColdRap_Pulverized",null,null,null,21,-155,-160]
[null,null,null,null,null,"Latitude",{"$f":"IF(Latitude=\"\",\"\",Latitude)","v":""},"GUI Input","degrees","0.000",null,null,null,"Aggregate_Base_ColdRap_with_millings",null,null,null,21.5,-155,-160]
[null,null,null,null,null,"Longitude",{"$f":"IF(Longitude=\"\",\"\",Longitude)","v":""},"GUI Input","degrees","0.000",null,null,null,"Aggregate_Base_Crushed_Gravel",null,null,null,22,-155,-160]
[null,null,null,null,null,"Altitude",{"$f":"IF(Elevation=\"\",\"\",Elevation*IF(UnitSystem=\"SI\",1,1/3.28084))","v":""},"GUI Input","m","0.00",null,null,null,"Aggregate_Base_Crushed_Stone",null,null,null,22.5,-155,-160]
[null,null,null,null,null,"Water Table Depth",{"$f":"IF(WaterTable=\"\",\"\",WaterTable*IF(UnitSystem=\"SI\",1,1/3.28084))","v":""},"GUI Input","m","0.00",null,null,null,"Aggregate_Base_Permeable_Aggregate",null,null,null,24,-66.25,-126.25]
[null,null,null,null,null,"Traffic Opening Date",{"$f":"IF(OpeningDate=\"\",\"\",YEAR(TODAY())+1 & IF(OpeningDate=\"January\",\"01\",IF(OpeningDate=\"February\",\"02\",IF(OpeningDate=\"March\",\"03\",IF(OpeningDate=\"April\",\"04\",IF(OpeningDate=\"May\",\"05\",IF(OpeningDate=\"June\",\"06\",IF(OpeningDate=\"July\",\"07\",IF(OpeningDate=\"August\",\"08\",IF(OpeningDate=\"September\",\"09\",IF(OpeningDate=\"October\",\"10\",IF(OpeningDate=\"November\",\"11\",IF(OpeningDate=\"December\",\"12\",\"\")))))))))))) & \"01\")","v":""},"GUI Input - The input year is calculated based on the earliest year available from the data in the climate data source and the day is set by default as 01.","yyyymmdd",null,null,null,null,"Aggregate_Base_River-Run_Gravel",null,null,null,24.5,-66.25,-126.25]
[null,null,null,null,null,"Design Life",{"$f":"IF(DesignLife=\"\",\"\",DesignLife)","v":""},"GUI Input","years","0",null,null,null,"Subgrade_A-1-a",null,null,null,25,-66.25,-126.25]
[null,null,null,null,null,"Number of Asphalt Layers",{"$f":"COUNTIF(StructureTable[Layer Type],\"Asphalt\")","v":0},"GUI Input",null,"0",null,null,null,"Subgrade_A-1-b",null,null,null,25.5,-66.25,-126.25]
[null,null,null,null,null,"Number of Aggregate Layers",{"$f":"COUNTIF(StructureTable[Layer Type],\"Unbound Base/Subbase\")+COUNTIF(StructureTable[Layer Type],\"Subgrade\")","v":0},"GUI Input",null,"0",null,null,null,"Subgrade_A-2-4",null,null,null,26,-66.25,-126.25]
[null,null,null,null,null,"Layer 1 Type",{"$f":"IF(NLayers>0,IF(INDEX(StructureTable[],1,1)<>\"\",IF(INDEX(StructureTable[],1,1)<>\"Unbound Base/Subbase\", INDEX(StructureTable[],1,1),\"Aggregate_Base\"),\"\"),\"\")","v":""},"GUI Input",null,null,null,null,null,"Subgrade_A-2-5",null,null,null,26.5,-66.25,-126.25]
[null,null,null,null,null,"Layer 1 Thickness",{"$f":"IF(NLayers>0,IF(INDEX(StructureTable[],1,2)<>\"\",IF(INDEX(StructureTable[],1,2)<>\"Infinite\",INDEX(StructureTable[],1,2)*IF(UnitSystem=\"SI\",1,2.54),\"Infinite\"),\"\"),\"\")","v":""},"GUI Input","m","0.0000",null,null,null,"Subgrade_A-2-6",null,null,null,27,-66.25,-126.25]
[null,null,null,null,null,"Layer 1 Material",{"$f":"IF(NLayers>0,IF(INDEX(StructureTable[],1,3)<>\"\",INDEX(StructureTable[],1,3),\"\"),\"\")","v":""},"GUI Input",null,null,null,null,null,"Subgrade_A-2-7",null,null,null,27.5,-66.25,-126.25]
[null,null,null,null,null,"Layer 2 Type",{"$f":"IF(NLayers>1,IF(INDEX(StructureTable[],2,1)<>\"\",IF(INDEX(StructureTable[],2,1)<>\"Unbound Base/Subbase\", INDEX(StructureTable[],2,1),\"Aggregate_Base\"),\"\"),\"\")","v":""},"GUI Input",null,null,null,null,null,"Subgrade_A-3",null,null,null,28,-66.25,-126.25]
[null,null,null,null,null,"Layer 2 Thickness",{"$f":"IF(NLayers>1,IF(INDEX(StructureTable[],2,2)<>\"\",IF(INDEX(StructureTable[],2,2)<>\"Infinite\",INDEX(StructureTable[],2,2)*IF(UnitSystem=\"SI\",1,2.54),\"Infinite\"),\"\"),\"\")","v":""},"GUI Input","m","0.0000",null,null,null,"Subgrade_A-4",null,null,null,28.5,-66.25,-126.25]
[null,null,null,null,null,"Layer 2 Material",{"$f":"IF(NLayers>1,IF(INDEX(StructureTable[],2,3)<>\"\",INDEX(StructureTable[],2,3),\"\"),\"\")","v":""},"GUI Input",null,null,null,null,null,"Subgrade_A-5",null,null,null,29,-66.25,-126.25]
[null,null,null,null,null,"Layer 3 Type",{"$f":"IF(NLayers>2,IF(INDEX(StructureTable[],3,1)<>\"\",IF(INDEX(StructureTable[],3,1)<>\"Unbound Base/Subbase\", INDEX(StructureTable[],3,1),\"Aggregate_Base\"),\"\"),\"\")","v":""},"GUI Input",null,null,null,null,null,"Subgrade_A-6",null,null,null,29.5,-66.25,-126.25]
[null,null,null,null,null,"Layer 3 Thickness",{"$f":"IF(NLayers>2,IF(INDEX(StructureTable[],3,2)<>\"\",IF(INDEX(StructureTable[],3,2)<>\"Infinite\",INDEX(StructureTable[],3,2)*IF(UnitSystem=\"SI\",1,2.54),\"Infinite\"),\"\"),\"\")","v":""},"GUI Input","m","0.0000",null,null,null,"Subgrade_A-7-5",null,null,null,30,-66.25,-126.25]
[null,null,null,null,null,"Layer 3 Material",{"$f":"IF(NLayers>2,IF(INDEX(StructureTable[],3,3)<>\"\",INDEX(StructureTable[],3,3),\"\"),\"\")","v":""},"GUI Input",null,null,null,null,null,"Subgrade_A-7-6",null,null,null,30.5,-66.25,-126.25]
[null,null,null,null,null,"Layer 4 Type",{"$f":"IF(NLayers>3,IF(INDEX(StructureTable[],4,1)<>\"\",IF(INDEX(StructureTable[],4,1)<>\"Unbound Base/Subbase\", INDEX(StructureTable[],4,1),\"Aggregate_Base\"),\"\"),\"\")","v":""},"GUI Input",null,null,null,null,null,null,null,null,null,31,-66.25,-126.25]
[null,null,null,null,null,"Layer 4 Thickness",{"$f":"IF(NLayers>3,IF(INDEX(StructureTable[],4,2)<>\"\",IF(INDEX(StructureTable[],4,2)<>\"Infinite\",INDEX(StructureTable[],4,2)*IF(UnitSystem=\"SI\",1,2.54),\"Infinite\"),\"\"),\"\")","v":"Infinite"},"GUI Input","m","0.0000",null,null,null,null,null,null,null,31.5,-66.25,-126.25]
[null,null,null,null,null,"Layer 4 Material",{"$f":"IF(NLayers>3,IF(INDEX(StructureTable[],4,3)<>\"\",INDEX(StructureTable[],4,3),\"\"),\"\")","v":""},"GUI Input",null,null,null,null,null,null,null,null,null,32,-66.25,-126.25]
[null,null,null,null,null,"Layer 5 Type",{"$f":"IF(NLayers>4,IF(INDEX(StructureTable[],5,1)<>\"\",IF(INDEX(StructureTable[],5,1)<>\"Unbound Base/Subbase\", INDEX(StructureTable[],5,1),\"Aggregate_Base\"),\"\"),\"\")","v":""},"GUI Input",null,null,null,null,null,null,null,null,null,32.5,-66.25,-126.25]
[null,null,null,null,null,"Layer 5 Thickness",{"$f":"IF(NLayers>4,IF(INDEX(StructureTable[],5,2)<>\"\",IF(INDEX(StructureTable[],5,2)<>\"Infinite\",INDEX(StructureTable[],5,2)*IF(UnitSystem=\"SI\",1,2.54),\"Infinite\"),\"\"),\"\")","v":""},"GUI Input","m","0.0000",null,null,null,null,null,null,null,33,-66.25,-126.25]
[null,null,null,null,null,"Layer 5 Material",{"$f":"IF(NLayers>4,IF(INDEX(StructureTable[],5,3)<>\"\",INDEX(StructureTable[],5,3),\"\"),\"\")","v":""},"GUI Input",null,null,null,null,null,null,null,null,null,33.5,-66.25,-126.25]
[null,null,null,null,null,"Layer 6 Type",{"$f":"IF(NLayers>5,IF(INDEX(StructureTable[],6,1)<>\"\",IF(INDEX(StructureTable[],6,1)<>\"Unbound Base/Subbase\", INDEX(StructureTable[],6,1),\"Aggregate_Base\"),\"\"),\"\")","v":""},"GUI Input",null,null,null,null,null,null,null,null,null,34,-66.25,-126.25]
[null,null,null,null,null,"Layer 6 Thickness",{"$f":"IF(NLayers>5,IF(INDEX(StructureTable[],6,2)<>\"\",IF(INDEX(StructureTable[],6,2)<>\"Infinite\",INDEX(StructureTable[],6,2)*IF(UnitSystem=\"SI\",1,2.54),\"Infinite\"),\"\"),\"\")","v":""},"GUI Input","m","0.0000",null,null,null,null,null,null,null,34.5,-66.25,-126.25]
[null,null,null,null,null,"Layer 6 Material",{"$f":"IF(NLayers>5,IF(INDEX(StructureTable[],6,3)<>\"\",INDEX(StructureTable[],6,3),\"\"),\"\")","v":""},"GUI Input",null,null,null,null,null,null,null,null,null,35,-66.25,-126.25]
[null,null,null,null,null,"Layer 7 Type",{"$f":"IF(NLayers>6,IF(INDEX(StructureTable[],7,1)<>\"\",IF(INDEX(StructureTable[],7,1)<>\"Unbound Base/Subbase\", INDEX(StructureTable[],7,1),\"Aggregate_Base\"),\"\"),\"\")","v":""},"GUI Input",null,null,null,null,null,null,null,null,null,35.5,-66.25,-126.25]
[null,null,null,null,null,"Layer 7 Thickness",{"$f":"IF(NLayers>6,IF(INDEX(StructureTable[],7,2)<>\"\",IF(INDEX(StructureTable[],7,2)<>\"Infinite\",INDEX(StructureTable[],7,2)*IF(UnitSystem=\"SI\",1,2.54),\"Infinite\"),\"\"),\"\")","v":""},"GUI Input","m","0.0000",null,null,null,null,null,null,null,36,-66.25,-126.25]
[null,null,null,null,null,"Layer 7 Material",{"$f":"IF(NLayers>6,IF(INDEX(StructureTable[],7,3)<>\"\",INDEX(StructureTable[],7,3),\"\"),\"\")","v":""},"GUI Input",null,null,null,null,null,null,null,null,null,36.5,-66.25,-126.25]
[null,null,null,null,null,"Layer 8 Type",{"$f":"IF(NLayers>7,IF(INDEX(StructureTable[],8,1)<>\"\",IF(INDEX(StructureTable[],8,1)<>\"Unbound Base/Subbase\", INDEX(StructureTable[],8,1),\"Aggregate_Base\"),\"\"),\"\")","v":""},"GUI Input",null,null,null,null,null,null,null,null,null,37,-66.25,-126.25]
[null,null,null,null,null,"Layer 8 Thickness",{"$f":"IF(NLayers>7,IF(INDEX(StructureTable[],8,2)<>\"\",IF(INDEX(StructureTable[],8,2)<>\"Infinite\",INDEX(StructureTable[],8,2)*IF(UnitSystem=\"SI\",1,2.54),\"Infinite\"),\"\"),\"\")","v":""},"GUI Input","m","0.0000",null,null,null,null,null,null,null,37.5,-66.25,-126.25]
[null,null,null,null,null,"Layer 8 Material",{"$f":"IF(NLayers>7,IF(INDEX(StructureTable[],8,3)<>\"\",INDEX(StructureTable[],8,3),\"\"),\"\")","v":""},"GUI Input",null,null,null,null,null,null,null,null,null,38,-66.25,-126.25]
[null,null,null,null,null,"Layer 9 Type",{"$f":"IF(NLayers>8,IF(INDEX(StructureTable[],9,1)<>\"\",IF(INDEX(StructureTable[],9,1)<>\"Unbound Base/Subbase\", INDEX(StructureTable[],9,1),\"Aggregate_Base\"),\"\"),\"\")","v":""},"GUI Input",null,null,null,null,null,null,null,null,null,38.5,-66.25,-126.25]
[null,null,null,null,null,"Layer 9 Thickness",{"$f":"IF(NLayers>8,IF(INDEX(StructureTable[],9,2)<>\"\",IF(INDEX(StructureTable[],9,2)<>\"Infinite\",INDEX(StructureTable[],9,2)*IF(UnitSystem=\"SI\",1,2.54),\"Infinite\"),\"\"),\"\")","v":""},"GUI Input","m","0.0000",null,null,null,null,null,null,null,39,-66.25,-126.25]
[null,null,null,null,null,"Layer 9 Material",{"$f":"IF(NLayers>8,IF(INDEX(StructureTable[],9,3)<>\"\",INDEX(StructureTable[],9,3),\"\"),\"\")","v":""},"GUI Input",null,null,null,null,null,null,null,null,null,39.5,-66.25,-126.25]
[null,null,null,null,null,"Layer 10 Type",{"$f":"IF(NLayers>9,IF(INDEX(StructureTable[],10,1)<>\"\",IF(INDEX(StructureTable[],10,1)<>\"Unbound Base/Subbase\", INDEX(StructureTable[],10,1),\"Aggregate_Base\"),\"\"),\"\")","v":""},"GUI Input",null,null,null,null,null,null,null,null,null,40,-66.25,-126.25]
[null,null,null,null,null,"Layer 10 Thickness",{"$f":"IF(NLayers>9,IF(INDEX(StructureTable[],10,2)<>\"\",IF(INDEX(StructureTable[],10,2)<>\"Infinite\",INDEX(StructureTable[],10,2)*IF(UnitSystem=\"SI\",1,2.54),\"Infinite\"),\"\"),\"\")","v":""},"GUI Input","m","0.0000",null,null,null,null,null,null,null,40.5,-66.25,-126.25]
[null,null,null,null,null,"Layer 10 Material",{"$f":"IF(NLayers>9,IF(INDEX(StructureTable[],10,3)<>\"\",INDEX(StructureTable[],10,3),\"\"),\"\")","v":""},"GUI Input",null,null,null,null,null,null,null,null,null,41,-66.25,-126.25]
[null,null,null,null,null,"ESALs per Day",{"$f":"IF(EsalsPerDay=\"\",\"\",EsalsPerDay)","v":""},"GUI Input",null,"0",null,null,null,null,null,null,null,41.5,-66.25,-126.25]
[null,null,null,null,null,"Axle Load",{"$f":"IF(AxleLoad=\"\",\"\",AxleLoad*IF(UnitSystem=\"SI\",1,1/0.2248089431)*1000)","v":""},"GUI Input","N","0.000e+0",null,null,null,null,null,null,null,42,-66.25,-126.25]
[null,null,null,null,null,"Tire Pressure",{"$f":"IF(TirePressure=\"\",\"\",TirePressure*IF(UnitSystem=\"SI\",1,1/0.1450377)*1000)","v":""},"GUI Input","Pa","0.000e+0",null,null,null,null,null,null,null,42.5,-66.25,-126.25]
[null,null,null,null,null,"Speed",{"$f":"IF(Speed=\"\",\"\",Speed*IF(UnitSystem=\"SI\",1,1/0.62137111111)/3.6)","v":""},"GUI Input","m/s","0.000",null,null,null,null,null,null,null,43,-66.25,-126.25]
[null,null,null,null,null,"Number of Seasons",4,"Default Information",null,null,null,null,null,null,null,null,null,43.5,-66.25,-126.25]
[null,null,null,null,null,"Season 1 start date","0101","Default Information",null,null,null,null,null,null,null,null,null,44,-66.25,-126.25]
[null,null,null,null,null,"Season 2 start date","0401","Default Information",null,null,null,null,null,null,null,null,null,44.5,-66.25,-126.25]
[null,null,null,null,null,"Season 3 start date","0701","Default Information",null,null,null,null,null,null,null,null,null,45,-66.25,-126.25]
[null,null,null,null,null,"Season 4 start date",1001,"Default Information",null,null,null,null,null,null,null,null,null,45.5,-66.25,-126.25]
[null,null,null,null,null,"Number of segments per day",3,"Default Information",null,null,null,null,null,null,null,null,null,46,-66.25,-126.25]
[null,null,null,null,null,"Segment 1 start hour","2","Default Information",null,null,null,null,null,null,null,null,null,46.5,-66.25,-126.25]
[null,null,null,null,null,"Segment 2 start hour","10","Default Information",null,null,null,null,null,null,null,null,null,47,-66.25,-126.25]
[null,null,null,null,null,"Segment 3 start hour","20","Default Information",null,null,null,null,null,null,null,null,null,47.5,-66.25,-126.25]
[null,null,null,null,null,"Response Output Season",1,"Default Information",null,null,null,null,null,null,null,null,null,48,-66.25,-126.25]
[null,null,null,null,null,"Response Output Segment",1,"Default Information",null,null,null,null,null,null,null,null,null,48.5,-66.25,-126.25]
[null,null,null,null,null,null,null,null,null,null,null,null,null,null,null,null,null,49,-66.25,-126.25]
[null,null,null,null,null,null,null,null,null,null,null,null,null,null,null,null,null,49.5,-66.25,-126.25]
[null,null,null,null,null,"hcd handling method",null,null,null,null,null,null,null,null,null,null,null,50,-66.25,-126.25]
[null,null,null,null,null,"Method","Title","Description","Value",null,null,null,null,null,null,null,null,50.5,-66.25,-126.25]
[null,null,null,null,null,1,"1=Closest Station","Uses only Nearest Station",false,null,null,null,null,null,null,null,null,51.5,-129.38,-178.75]
[null,null,null,null,null,2,"2=Multiple Nearest Stations","Interpolation between group of nearest stations",false,null,null,null,null,null,null,null,null,52,-129.38,-178.75]
[null,null,null,null,null,3,"3=Manual Selection","Specific hcd files of user's choice",false,null,null,null,null,null,null,null,null,52.5,-129.38,-178.75]
[null,null,null,null,null,null,null,null,null,null,null,null,null,null,null,null,null,53,-129.38,-178.75]
[null,null,null,null,null,null,null,null,null,null,null,null,null,null,null,null,null,53.5,-129.38,-178.75]
[null,null,null,null,null,null,null,null,null,null,null,null,null,null,null,null,null,54,-129.38,-178.75]
[null,null,null,null,null,"interpolation files of hcd",null,null,null,null,null,null,null,null,null,null,null,54.5,-129.38,-178.75]
[null,null,null,null,null,"File Address","Latitude","Longitude","Altitude [m]",null,null,null,null,null,null,null,null,55,-129.38,-178.75]
[null,null,null,null,null,null,null,null,null,null,null,null,null,null,null,null,null,55.5,-129.38,-178.75]
[null,null,null,null,null,null,null,null,null,null,null,null,null,null,null,null,null,56,-129.38,-178.75]
[null,null,null,null,null,null,null,null,null,null,null,null,null,null,null,null,null,56.5,-129.38,-178.75]
[null,null,null,null,null,null,null,null,null,null,null,null,null,null,null,null,null,57,-129.38,-178.75]
[null,null,null,null,null,null,null,null,null,null,null,null,null,null,null,null,null,57.5,-129.38,-178.75]
[null,null,null,null,null,null,null,null,null,null,null,null,null,null,null,null,null,58,-129.38,-178.75]
[null,null,null,null,null,null,null,null,null,null,null,null,null,null,null,null,null,58.5,-129.38,-178.75]
[null,null,null,null,null,null,null,null,null,null,null,null,null,null,null,null,null,59,-129.38,-178.75]
[null,null,null,null,null,null,null,null,null,null,null,null,null,null,null,null,null,59.5,-129.38,-178.75]
[null,null,null,null,null,null,null,null,null,null,null,null,null,null,null,null,null,60,-129.38,-178.75]
[null,null,null,null,null,null,null,null,null,null,null,null,null,null,null,null,null,60.5,-129.38,-178.75]
[null,null,null,null,null,null,null,null,null,null,null,null,null,null,null,null,null,61,-129.38,-178.75]
[null,null,null,null,null,null,null,null,null,null,null,null,null,null,null,null,null,61.5,-129.38,-178.75]
[null,null,null,null,null,null,null,null,null,null,null,null,null,null,null,null,null,62,-129.38,-178.75]
[null,null,null,null,null,null,null,null,null,null,null,null,null,null,null,null,null,62.5,-129.38,-178.75]
[null,null,null,null,null,null,null,null,null,null,null,null,null,null,null,null,null,63,-129.38,-178.75]
[null,null,null,null,null,null,null,null,null,null,null,null,null,null,null,null,null,63.5,-129.38,-178.75]
[null,null,null,null,null,null,null,null,null,null,null,null,null,null,null,null,null,64,-129.38,-178.75]
[null,null,null,null,null,null,null,null,null,null,null,null,null,null,null,null,null,64.5,-129.38,-178.75]
[null,null,null,null,null,null,null,null,null,null,null,null,null,null,null,null,null,65,-129.38,-178.75]
[null,null,null,null,null,null,null,null,null,null,null,null,null,null,null,null,null,65.5,-129.38,-178.75]
[null,null,null,null,null,null,null,null,null,null,null,null,null,null,null,null,null,66,-129.38,-178.75]
[null,null,null,null,null,null,null,null,null,null,null,null,null,null,null,null,null,66.5,-129.38,-178.75]
[null,null,null,null,null,null,null,null,null,null,null,null,null,null,null,null,null,67,-129.38,-178.75]
[null,null,null,null,null,null,null,null,null,null,null,null,null,null,null,null,null,67.5,-129.38,-178.75]
[null,null,null,null,null,null,null,null,null,null,null,null,null,null,null,null,null,68,-129.38,-178.75]
[null,null,null,null,null,null,null,null,null,null,null,null,null,null,null,null,null,68.5,-129.38,-178.75]
[null,null,null,null,null,null,null,null,null,null,null,null,null,null,null,null,null,69,-129.38,-178.75]
[null,null,null,null,null,null,null,null,null,null,null,null,null,null,null,null,null,69.5,-129.38,-178.75]
[null,null,null,null,null,null,null,null,null,null,null,null,null,null,null,null,null,70,-129.38,-178.75]
[null,null,null,null,null,null,null,null,null,null,null,null,null,null,null,null,null,70.5,-129.38,-178.75]
[null,null,null,null,null,null,null,null,null,null,null,null,null,null,null,null,null,71,-129.38,-178.75]
[null,null,null,null,null,null,null,null,null,null,null,null,null,null,null,null,null,71.5,-129.38,-178.75]
[null,null,null,null,null,null,null,null,null,null,null,null,null,null,null,null,null,72,-129.38,-178.75]